[Event "Late-Titled-Tuesday-Blitz-November-28-2023"]
[Site "Chess.com"]
[Date "2023.11.28"]
[Round "2"]
[White "Hikaru"]
[Black "SaqoChess_Twitch"]
[Result "1-0"]
[WhiteElo "3220"]
[BlackElo "2635"]
[TimeControl "180+1"]
[EndTime "14:17:50 PST"]
[Termination "Hikaru won by resignation"]

1. g3 {[%clk 0:03:00.9]} 1... d5 {[%clk 0:03:00]} 2. Bg2 {[%clk 0:03:00.7]} 2...
e6 {[%clk 0:03:00.5]} 3. d3 {[%clk 0:02:59.2]} 3... Nf6 {[%clk 0:03:01.2]} 4.
Nd2 {[%clk 0:02:56.6]} 4... Be7 {[%clk 0:03:00.9]} 5. e4 {[%clk 0:02:55.9]} 5...
dxe4 {[%clk 0:03:01.2]} 6. dxe4 {[%clk 0:02:55.9]} 6... e5 {[%clk 0:03:00.1]} 7.
Ngf3 {[%clk 0:02:55.7]} 7... Nc6 {[%clk 0:02:59.9]} 8. O-O {[%clk 0:02:55.1]}
8... O-O {[%clk 0:03:00.1]} 9. c3 {[%clk 0:02:54.8]} 9... a5 {[%clk 0:02:54.8]}
10. a4 {[%clk 0:02:48.7]} 10... Be6 {[%clk 0:02:52.1]} 11. Qe2 {[%clk
0:02:44.3]} 11... Bc5 {[%clk 0:02:35.2]} 12. Nc4 {[%clk 0:02:41.6]} 12... Nd7
{[%clk 0:02:12.5]} 13. Ng5 {[%clk 0:02:41.6]} 13... Bxc4 {[%clk 0:02:07.7]} 14.
Qxc4 {[%clk 0:02:41.5]} 14... Qe7 {[%clk 0:02:03.7]} 15. h4 {[%clk 0:02:39]}
15... Nb6 {[%clk 0:01:58.8]} 16. Qe2 {[%clk 0:02:38.9]} 16... Rad8 {[%clk
0:01:54.8]} 17. Bh3 {[%clk 0:02:34]} 17... h6 {[%clk 0:01:52.3]} 18. Nf3 {[%clk
0:02:34.2]} 18... Rd6 {[%clk 0:01:49.8]} 19. h5 {[%clk 0:02:31.7]} 19... Rfd8
{[%clk 0:01:49.3]} 20. Nh4 {[%clk 0:02:32.1]} 20... Rd3 {[%clk 0:01:37.9]} 21.
Kh2 {[%clk 0:02:17.7]} 21... Qf8 {[%clk 0:01:24.4]} 22. Nf5 {[%clk 0:02:13.4]}
22... Ne7 {[%clk 0:01:23.7]} 23. Nd4 {[%clk 0:02:06.7]} 23... R3xd4 {[%clk
0:01:06.6]} 24. cxd4 {[%clk 0:02:06.6]} 24... Bxd4 {[%clk 0:01:07.5]} 25. Ra2
{[%clk 0:01:39.5]} 25... Nc6 {[%clk 0:01:07.5]} 26. b3 {[%clk 0:01:39.9]} 26...
Qb4 {[%clk 0:01:04.7]} 27. Qc2 {[%clk 0:01:36.5]} 27... Bc3 {[%clk 0:01:01.4]}
28. Ba3 {[%clk 0:01:30.7]} 28... Qd4 {[%clk 0:00:58.7]} 29. Qe2 {[%clk
0:01:16.6]} 29... Bb4 {[%clk 0:00:44.4]} 30. Bc1 {[%clk 0:01:11.2]} 30... Qd3
{[%clk 0:00:40.4]} 31. Be3 {[%clk 0:01:10.9]} 31... Qxb3 {[%clk 0:00:36.3]} 32.
Bxb6 {[%clk 0:01:07.1]} 32... cxb6 {[%clk 0:00:37.2]} 33. Rc1 {[%clk 0:01:06.7]}
33... Nd4 {[%clk 0:00:31]} 34. Rd1 {[%clk 0:00:47.1]} 34... Nf3+ {[%clk
0:00:15.1]} 35. Qxf3 {[%clk 0:00:44.2]} 35... Qxd1 {[%clk 0:00:15.5]} 36. Qxd1
{[%clk 0:00:42.7]} 36... Rxd1 {[%clk 0:00:16.4]} 37. Rc2 {[%clk 0:00:42.8]}
37... Rd8 {[%clk 0:00:14.1]} 38. Rc7 {[%clk 0:00:41.5]} 38... Bc5 {[%clk
0:00:14.7]} 39. f3 {[%clk 0:00:39.6]} 39... Rd2+ {[%clk 0:00:14.7]} 40. Kh1
{[%clk 0:00:39.5]} 40... Rd1+ {[%clk 0:00:14.8]} 41. Kh2 {[%clk 0:00:40.2]}
41... Rd2+ {[%clk 0:00:15]} 42. Bg2 {[%clk 0:00:40.3]} 42... Rd4 {[%clk
0:00:09.4]} 43. Rxb7 {[%clk 0:00:40.8]} 43... Rxa4 {[%clk 0:00:10]} 44. Bf1
{[%clk 0:00:40.5]} 44... Ra2+ {[%clk 0:00:10.4]} 45. Kh3 {[%clk 0:00:40.8]}
45... Rc2 {[%clk 0:00:10.2]} 46. Bb5 {[%clk 0:00:39.1]} 46... g6 {[%clk
0:00:09.3]} 47. hxg6 {[%clk 0:00:39.1]} 47... fxg6 {[%clk 0:00:10.2]} 48. f4
{[%clk 0:00:38.6]} 48... exf4 {[%clk 0:00:08.9]} 49. gxf4 {[%clk 0:00:39.5]}
49... Be3 {[%clk 0:00:09.1]} 50. Kg3 {[%clk 0:00:34.1]} 50... h5 {[%clk
0:00:07.6]} 51. e5 {[%clk 0:00:33.9]} 51... h4+ {[%clk 0:00:07.9]} 52. Kf3
{[%clk 0:00:34.3]} 52... Bc1 {[%clk 0:00:04.7]} 53. e6 {[%clk 0:00:33.6]} 53...
Ba3 {[%clk 0:00:01.2]} 54. e7 {[%clk 0:00:33.2]} 54... Bxe7 {[%clk 0:00:01.9]}
55. Rxe7 {[%clk 0:00:34.1]} 55... h3 {[%clk 0:00:02.4]} 56. Re1 {[%clk
0:00:25.6]} 56... h2 {[%clk 0:00:02.9]} 57. Kg3 {[%clk 0:00:25.7]} 57... Kg7
{[%clk 0:00:03.6]} 58. Rb1 {[%clk 0:00:23]} 58... Rc3+ {[%clk 0:00:03.3]} 59.
Kxh2 {[%clk 0:00:22.8]} 59... Rc5 {[%clk 0:00:04.1]} 60. Kg3 {[%clk 0:00:22.9]}
60... g5 {[%clk 0:00:04.9]} 61. Kg4 {[%clk 0:00:23]} 61... gxf4 {[%clk
0:00:05.2]} 62. Kxf4 {[%clk 0:00:23.9]} 62... Kf6 {[%clk 0:00:06]} 63. Ke4
{[%clk 0:00:24]} 63... Ke6 {[%clk 0:00:06.7]} 64. Kd4 {[%clk 0:00:24]} 64... Kd6
{[%clk 0:00:07.3]} 65. Bc4 {[%clk 0:00:24.3]} 65... Rh5 {[%clk 0:00:06.8]} 66.
Rxb6+ {[%clk 0:00:24.4]} 66... Kc7 {[%clk 0:00:06.7]} 67. Rg6 {[%clk 0:00:25.3]}
67... a4 {[%clk 0:00:06.2]} 68. Bd5 {[%clk 0:00:25.8]} 68... a3 {[%clk
0:00:06.5]} 69. Kc5 {[%clk 0:00:26.4]} 69... Rh7 {[%clk 0:00:06.5]} 70. Ra6
{[%clk 0:00:26.4]} 70... Kd8 {[%clk 0:00:06.8]} 71. Ra8+ {[%clk 0:00:26.4]}
71... Ke7 {[%clk 0:00:07.2]} 72. Ra7+ {[%clk 0:00:26.4]} 72... Kf6 {[%clk
0:00:07.4]} 73. Rxh7 {[%clk 0:00:27.3]} 73... a2 {[%clk 0:00:08.1]} 74. Bxa2
{[%clk 0:00:27.1]} 1-0

[Event "Late-Titled-Tuesday-Blitz-November-28-2023"]
[Site "Chess.com"]
[Date "2023.11.28"]
[Round "2"]
[White "C_K_G"]
[Black "inagreV"]
[Result "0-1"]
[WhiteElo "2183"]
[BlackElo "2439"]
[TimeControl "180+1"]
[EndTime "14:17:55 PST"]
[Termination "inagreV won on time"]

1. e4 {[%clk 0:03:00.9]} 1... c6 {[%clk 0:02:55.4]} 2. Nf3 {[%clk 0:03:00.5]}
2... d5 {[%clk 0:02:56]} 3. Nc3 {[%clk 0:03:00.9]} 3... Nf6 {[%clk 0:02:55]} 4.
e5 {[%clk 0:02:54.4]} 4... Ne4 {[%clk 0:02:54.8]} 5. d4 {[%clk 0:02:52.2]} 5...
Bf5 {[%clk 0:02:53.6]} 6. Bd3 {[%clk 0:02:51.1]} 6... e6 {[%clk 0:02:53.7]} 7.
O-O {[%clk 0:02:50.6]} 7... Bg6 {[%clk 0:02:38.2]} 8. Bxe4 {[%clk 0:02:40]} 8...
dxe4 {[%clk 0:02:34.5]} 9. Ng5 {[%clk 0:02:38.5]} 9... c5 {[%clk 0:02:32.5]} 10.
d5 {[%clk 0:02:35.2]} 10... Be7 {[%clk 0:02:14.6]} 11. dxe6 {[%clk 0:01:21.5]}
11... Bxg5 {[%clk 0:02:08.8]} 12. exf7+ {[%clk 0:01:20.3]} 12... Kxf7 {[%clk
0:02:02.3]} 13. Bxg5 {[%clk 0:01:17.4]} 13... Qxg5 {[%clk 0:02:01.9]} 14. Qd5+
{[%clk 0:01:17.2]} 14... Ke7 {[%clk 0:01:49.4]} 15. Qxc5+ {[%clk 0:01:09.7]}
15... Ke8 {[%clk 0:01:46.6]} 16. Nd5 {[%clk 0:01:04.7]} 16... Nd7 {[%clk
0:01:37.5]} 17. Nc7+ {[%clk 0:00:58]} 17... Kd8 {[%clk 0:01:30]} 18. Qd6 {[%clk
0:00:57.3]} 18... Qxe5 {[%clk 0:01:24]} 19. Qxe5 {[%clk 0:00:50.9]} 19... Nxe5
{[%clk 0:01:24.1]} 20. Nxa8 {[%clk 0:00:51.2]} 20... Kd7 {[%clk 0:01:21.6]} 21.
Rad1+ {[%clk 0:00:47.3]} 21... Kc6 {[%clk 0:01:21.4]} 22. f3 {[%clk 0:00:36.4]}
22... Rxa8 {[%clk 0:01:07.8]} 23. fxe4 {[%clk 0:00:36.3]} 23... Re8 {[%clk
0:01:07.5]} 24. Rfe1 {[%clk 0:00:30.8]} 24... Re6 {[%clk 0:01:03]} 25. b3 {[%clk
0:00:29.2]} 25... Ng4 {[%clk 0:00:57.8]} 26. Rd4 {[%clk 0:00:26.7]} 26... Nf6
{[%clk 0:00:55.3]} 27. e5 {[%clk 0:00:24.6]} 27... Ne8 {[%clk 0:00:47.2]} 28.
Re3 {[%clk 0:00:18.6]} 28... b5 {[%clk 0:00:44.8]} 29. Rc3+ {[%clk 0:00:17.2]}
29... Kb6 {[%clk 0:00:45]} 30. Rd5 {[%clk 0:00:13.4]} 30... Be4 {[%clk 0:00:40]}
31. Rdc5 {[%clk 0:00:11.9]} 31... Rg6 {[%clk 0:00:38.2]} 32. g3 {[%clk
0:00:11.2]} 32... Rc6 {[%clk 0:00:35.1]} 33. Rxc6+ {[%clk 0:00:10.7]} 33... Bxc6
{[%clk 0:00:35.3]} 34. Re3 {[%clk 0:00:11]} 34... Bd5 {[%clk 0:00:34.4]} 35. Kf2
{[%clk 0:00:10.5]} 35... Nc7 {[%clk 0:00:32.5]} 36. Ke2 {[%clk 0:00:09.1]} 36...
Kc5 {[%clk 0:00:30.9]} 37. Kd2 {[%clk 0:00:09.2]} 37... Ne6 {[%clk 0:00:30.5]}
38. c3 {[%clk 0:00:09.2]} 38... a5 {[%clk 0:00:30.6]} 39. a3 {[%clk 0:00:08.5]}
39... Bxb3 {[%clk 0:00:30.1]} 40. Rf3 {[%clk 0:00:08.9]} 40... Kd5 {[%clk
0:00:27.7]} 41. Rf7 {[%clk 0:00:08.6]} 41... Kxe5 {[%clk 0:00:27.6]} 42. Rb7
{[%clk 0:00:08.1]} 42... Bc4 {[%clk 0:00:26.9]} 43. Ra7 {[%clk 0:00:08]} 43...
a4 {[%clk 0:00:26.9]} 44. Ke3 {[%clk 0:00:08.2]} 44... Kf6 {[%clk 0:00:26]} 45.
h4 {[%clk 0:00:06.9]} 45... h5 {[%clk 0:00:25.3]} 46. Ke4 {[%clk 0:00:06]} 46...
Nc5+ {[%clk 0:00:22.3]} 47. Kd4 {[%clk 0:00:05.4]} 47... Nb3+ {[%clk 0:00:20.5]}
48. Ke4 {[%clk 0:00:05.2]} 48... Nd2+ {[%clk 0:00:20.6]} 49. Kf4 {[%clk
0:00:05.3]} 49... g6 {[%clk 0:00:18.1]} 50. Ra6+ {[%clk 0:00:05.4]} 50... Be6
{[%clk 0:00:18.2]} 51. Rb6 {[%clk 0:00:03.6]} 51... Nb1 {[%clk 0:00:17.5]} 52.
Rxb5 {[%clk 0:00:02.2]} 52... Nxc3 {[%clk 0:00:17.6]} 53. Ra5 {[%clk 0:00:02.4]}
53... Bd7 {[%clk 0:00:16]} 54. Ra6+ {[%clk 0:00:01.8]} 54... Be6 {[%clk
0:00:15.8]} 55. Ra5 {[%clk 0:00:01.6]} 55... Nd5+ {[%clk 0:00:16.2]} 0-1

[Event "Late-Titled-Tuesday-Blitz-November-28-2023"]
[Site "Chess.com"]
[Date "2023.11.28"]
[Round "2"]
[White "giomar27"]
[Black "Yushko_Olga"]
[Result "1-0"]
[WhiteElo "2428"]
[BlackElo "2136"]
[TimeControl "180+1"]
[EndTime "14:17:56 PST"]
[Termination "giomar27 won on time"]

1. e4 {[%clk 0:03:00.9]} 1... e6 {[%clk 0:02:59.5]} 2. d3 {[%clk 0:03:00.6]}
2... d5 {[%clk 0:02:42.3]} 3. Nd2 {[%clk 0:03:00.4]} 3... Nf6 {[%clk 0:02:42.3]}
4. Ngf3 {[%clk 0:02:59.2]} 4... Be7 {[%clk 0:02:40.3]} 5. g3 {[%clk 0:02:58.7]}
5... O-O {[%clk 0:02:39.7]} 6. Bg2 {[%clk 0:02:59.4]} 6... c5 {[%clk 0:02:33.6]}
7. O-O {[%clk 0:02:59.4]} 7... Nc6 {[%clk 0:02:33]} 8. Re1 {[%clk 0:02:59.8]}
8... Qc7 {[%clk 0:02:16.2]} 9. Nf1 {[%clk 0:02:57.2]} 9... dxe4 {[%clk
0:01:58.2]} 10. dxe4 {[%clk 0:02:57.3]} 10... Rd8 {[%clk 0:01:54.6]} 11. Qe2
{[%clk 0:02:53]} 11... Nd4 {[%clk 0:01:51.9]} 12. Nxd4 {[%clk 0:02:50.7]} 12...
cxd4 {[%clk 0:01:51.9]} 13. Bg5 {[%clk 0:02:35.7]} 13... Bd7 {[%clk 0:01:22.4]}
14. Bxf6 {[%clk 0:02:31.8]} 14... Bxf6 {[%clk 0:01:21.5]} 15. e5 {[%clk
0:02:32.4]} 15... Be7 {[%clk 0:01:21.6]} 16. Rac1 {[%clk 0:02:32.3]} 16... Bc6
{[%clk 0:01:20.5]} 17. Nd2 {[%clk 0:02:31]} 17... Bxg2 {[%clk 0:01:20.2]} 18.
Kxg2 {[%clk 0:02:31.9]} 18... Rac8 {[%clk 0:01:18]} 19. Nf3 {[%clk 0:02:27.8]}
19... Qb6 {[%clk 0:01:13.1]} 20. b3 {[%clk 0:02:26.6]} 20... Rc3 {[%clk
0:01:12.1]} 21. Rcd1 {[%clk 0:02:19.4]} 21... Qc6 {[%clk 0:01:06.3]} 22. Rd2
{[%clk 0:02:18.7]} 22... Bb4 {[%clk 0:01:02.8]} 23. Red1 {[%clk 0:02:15.4]}
23... Bc5 {[%clk 0:00:41.3]} 24. Rd3 {[%clk 0:02:08.6]} 24... Bb6 {[%clk
0:00:37.2]} 25. Rxc3 {[%clk 0:02:04]} 25... Qxc3 {[%clk 0:00:38.1]} 26. Qd3
{[%clk 0:02:04.1]} 26... Qc6 {[%clk 0:00:19.7]} 27. Kg1 {[%clk 0:01:55.1]} 27...
Rc8 {[%clk 0:00:20.1]} 28. Nxd4 {[%clk 0:01:53.8]} 28... Bxd4 {[%clk 0:00:20]}
29. Qxd4 {[%clk 0:01:54.1]} 29... h6 {[%clk 0:00:20.3]} 30. c4 {[%clk
0:01:50.5]} 30... Qa6 {[%clk 0:00:19.8]} 31. a4 {[%clk 0:01:47.1]} 31... Qa5
{[%clk 0:00:18.5]} 32. Qd7 {[%clk 0:01:45]} 32... Rc7 {[%clk 0:00:16.9]} 33.
Qd8+ {[%clk 0:01:43.1]} 33... Kh7 {[%clk 0:00:16.2]} 34. Kg2 {[%clk 0:01:41.6]}
34... Qc5 {[%clk 0:00:14.8]} 35. Qd3+ {[%clk 0:01:39.5]} 35... Kg8 {[%clk
0:00:13.2]} 36. Qd6 {[%clk 0:01:37.1]} 36... Qa5 {[%clk 0:00:10.9]} 37. b4
{[%clk 0:01:35.6]} 37... Qb6 {[%clk 0:00:08.6]} 38. c5 {[%clk 0:01:31.5]} 38...
Qc6+ {[%clk 0:00:07.3]} 39. Qxc6 {[%clk 0:01:31.5]} 39... Rxc6 {[%clk
0:00:07.6]} 40. Rd8+ {[%clk 0:01:25.8]} 40... Kh7 {[%clk 0:00:08.2]} 41. Rd7
{[%clk 0:01:26.5]} 41... b6 {[%clk 0:00:08.9]} 42. Rxa7 {[%clk 0:01:19.9]} 42...
bxc5 {[%clk 0:00:08.9]} 43. b5 {[%clk 0:01:20.5]} 43... Rb6 {[%clk 0:00:08.2]}
44. Rxf7 {[%clk 0:01:20.5]} 44... Rb8 {[%clk 0:00:08.5]} 45. Rc7 {[%clk
0:01:14.7]} 45... Ra8 {[%clk 0:00:08.8]} 46. Rxc5 {[%clk 0:01:14.6]} 46... Rxa4
{[%clk 0:00:09.6]} 47. Rc6 {[%clk 0:01:12.4]} 47... Rb4 {[%clk 0:00:10]} 48. Rb6
{[%clk 0:01:09]} 48... Kg8 {[%clk 0:00:09.4]} 49. Rb7 {[%clk 0:01:06]} 49... Kf8
{[%clk 0:00:08.7]} 50. f4 {[%clk 0:01:04.7]} 50... Kg8 {[%clk 0:00:08.8]} 51. h4
{[%clk 0:01:03.5]} 51... Kh7 {[%clk 0:00:09.5]} 52. Kf3 {[%clk 0:01:03.9]} 52...
Kg6 {[%clk 0:00:10]} 53. b6 {[%clk 0:00:55.6]} 53... Kf5 {[%clk 0:00:09.3]} 54.
g4+ {[%clk 0:00:45.6]} 54... Kg6 {[%clk 0:00:09.9]} 55. h5+ {[%clk 0:00:46.1]}
55... Kh7 {[%clk 0:00:09.4]} 56. f5 {[%clk 0:00:44.7]} 56... Rb3+ {[%clk
0:00:09]} 57. Ke2 {[%clk 0:00:42.2]} 57... exf5 {[%clk 0:00:08.8]} 58. gxf5
{[%clk 0:00:41.2]} 58... Rb5 {[%clk 0:00:09.5]} 59. e6 {[%clk 0:00:39.1]} 59...
Rxf5 {[%clk 0:00:09.7]} 60. e7 {[%clk 0:00:39.8]} 60... Re5+ {[%clk 0:00:09.6]}
61. Kf3 {[%clk 0:00:38.4]} 61... Rf5+ {[%clk 0:00:09.3]} 62. Ke4 {[%clk
0:00:38.3]} 62... Rf1 {[%clk 0:00:07.5]} 63. Kd5 {[%clk 0:00:34.9]} 63... Rd1+
{[%clk 0:00:07.3]} 64. Ke6 {[%clk 0:00:34.9]} 64... Re1+ {[%clk 0:00:07.3]} 65.
Kf7 {[%clk 0:00:35.2]} 65... Rf1+ {[%clk 0:00:07.5]} 66. Ke8 {[%clk 0:00:35.8]}
66... Re1 {[%clk 0:00:08]} 67. Rd7 {[%clk 0:00:35.7]} 67... Ra1 {[%clk
0:00:04.3]} 68. b7 {[%clk 0:00:34.8]} 1-0

[Event "Late-Titled-Tuesday-Blitz-November-28-2023"]
[Site "Chess.com"]
[Date "2023.11.28"]
[Round "2"]
[White "mr_gustavo"]
[Black "FairChess_on_YouTube"]
[Result "1/2-1/2"]
[WhiteElo "2635"]
[BlackElo "3080"]
[TimeControl "180+1"]
[EndTime "14:18:00 PST"]
[Termination "Game drawn by repetition"]

1. d4 {[%clk 0:03:00.4]} 1... d5 {[%clk 0:02:45.1]} 2. c4 {[%clk 0:03:00.3]}
2... c6 {[%clk 0:02:45]} 3. Nf3 {[%clk 0:02:59.8]} 3... Nf6 {[%clk 0:02:45.2]}
4. Nc3 {[%clk 0:02:56.1]} 4... a6 {[%clk 0:02:44.7]} 5. g3 {[%clk 0:02:55.2]}
5... b5 {[%clk 0:02:42.5]} 6. c5 {[%clk 0:02:51.8]} 6... g6 {[%clk 0:02:39.6]}
7. Bg2 {[%clk 0:02:51.8]} 7... Bg7 {[%clk 0:02:39.7]} 8. O-O {[%clk 0:02:52.2]}
8... O-O {[%clk 0:02:39.9]} 9. Ne5 {[%clk 0:02:50.4]} 9... Nfd7 {[%clk
0:02:38.7]} 10. Nxd7 {[%clk 0:02:48.8]} 10... Nxd7 {[%clk 0:02:33.6]} 11. e4
{[%clk 0:02:49.7]} 11... dxe4 {[%clk 0:02:32.5]} 12. Nxe4 {[%clk 0:02:49.3]}
12... Bb7 {[%clk 0:02:28.4]} 13. Bg5 {[%clk 0:02:41.2]} 13... h6 {[%clk
0:02:25.8]} 14. Be3 {[%clk 0:02:39.9]} 14... Nf6 {[%clk 0:02:22.7]} 15. Nxf6+
{[%clk 0:02:39.8]} 15... Bxf6 {[%clk 0:02:20.6]} 16. Bxh6 {[%clk 0:02:37.6]}
16... Qxd4 {[%clk 0:02:20.2]} 17. Bxf8 {[%clk 0:02:34]} 17... Kxf8 {[%clk
0:02:17.3]} 18. Rc1 {[%clk 0:02:18.7]} 18... a5 {[%clk 0:02:09.4]} 19. Rc2
{[%clk 0:02:15.7]} 19... Rd8 {[%clk 0:02:06.2]} 20. Qe2 {[%clk 0:02:08.9]} 20...
b4 {[%clk 0:02:02]} 21. Bf3 {[%clk 0:02:02.8]} 21... Kg7 {[%clk 0:02:01]} 22.
Rd1 {[%clk 0:02:01.4]} 22... Qxd1+ {[%clk 0:01:56.7]} 23. Qxd1 {[%clk
0:02:02.3]} 23... Rxd1+ {[%clk 0:01:56.7]} 24. Bxd1 {[%clk 0:02:03.2]} 24... Bd4
{[%clk 0:01:53.1]} 25. Kf1 {[%clk 0:01:58.8]} 25... e5 {[%clk 0:01:49.7]} 26.
Be2 {[%clk 0:01:51.9]} 26... Bc8 {[%clk 0:01:45.7]} 27. Bf3 {[%clk 0:01:19.1]}
27... Bd7 {[%clk 0:01:41.8]} 28. Ke2 {[%clk 0:01:18.9]} 28... f5 {[%clk
0:01:36.9]} 29. Kd3 {[%clk 0:01:15.5]} 29... Kf6 {[%clk 0:01:34.6]} 30. Bg2
{[%clk 0:01:12.3]} 30... a4 {[%clk 0:01:18.1]} 31. f4 {[%clk 0:01:07.7]} 31...
Bg1 {[%clk 0:01:09.7]} 32. fxe5+ {[%clk 0:00:58.4]} 32... Kxe5 {[%clk
0:01:10.6]} 33. h3 {[%clk 0:00:59.3]} 33... g5 {[%clk 0:00:58]} 34. Re2+ {[%clk
0:00:58.1]} 34... Kf6 {[%clk 0:00:57.9]} 35. Kc4 {[%clk 0:00:55.5]} 35... b3
{[%clk 0:00:54.1]} 36. axb3 {[%clk 0:00:53]} 36... axb3 {[%clk 0:00:55]} 37. Rd2
{[%clk 0:00:41.1]} 37... Ke7 {[%clk 0:00:41.5]} 38. h4 {[%clk 0:00:27.6]} 38...
f4 {[%clk 0:00:36.8]} 39. h5 {[%clk 0:00:19]} 39... Be3 {[%clk 0:00:31.2]} 40.
h6 {[%clk 0:00:07.9]} 40... Be6+ {[%clk 0:00:29.8]} 41. Kd3 {[%clk 0:00:06.9]}
41... Bf5+ {[%clk 0:00:21.4]} 42. Be4 {[%clk 0:00:05.4]} 42... Bxd2 {[%clk
0:00:19.4]} 43. Bxf5 {[%clk 0:00:04.4]} 43... Bc1 {[%clk 0:00:18.4]} 44. Kc3
{[%clk 0:00:03.8]} 44... Kf6 {[%clk 0:00:15]} 45. gxf4 {[%clk 0:00:03.3]} 45...
gxf4 {[%clk 0:00:12.1]} 46. Kxb3 {[%clk 0:00:03.1]} 46... f3 {[%clk 0:00:11.2]}
47. Bd3 {[%clk 0:00:03.1]} 47... Bxh6 {[%clk 0:00:10.8]} 48. Bf1 {[%clk
0:00:02.8]} 48... Ke5 {[%clk 0:00:10.5]} 49. Kc4 {[%clk 0:00:03.2]} 49... Bd2
{[%clk 0:00:10]} 50. b4 {[%clk 0:00:03.6]} 50... Ke4 {[%clk 0:00:09.1]} 51. Bh3
{[%clk 0:00:02.9]} 51... Bf4 {[%clk 0:00:07.8]} 52. Bf1 {[%clk 0:00:02.8]} 52...
Ke3 {[%clk 0:00:08]} 53. b5 {[%clk 0:00:03.3]} 53... cxb5+ {[%clk 0:00:07.8]}
54. Kxb5 {[%clk 0:00:04.2]} 54... Kf2 {[%clk 0:00:08.2]} 55. Bc4 {[%clk
0:00:04.8]} 55... Ke1 {[%clk 0:00:08.3]} 56. c6 {[%clk 0:00:05.3]} 56... f2
{[%clk 0:00:08.7]} 57. Bd3 {[%clk 0:00:05.6]} 57... Kd2 {[%clk 0:00:08.3]} 58.
Bc4 {[%clk 0:00:05.8]} 58... Kc3 {[%clk 0:00:08.8]} 59. Bf1 {[%clk 0:00:05.8]}
59... Bc7 {[%clk 0:00:09]} 60. Bh3 {[%clk 0:00:05.9]} 60... Kd4 {[%clk
0:00:09.1]} 61. Ka6 {[%clk 0:00:05.9]} 61... Kc5 {[%clk 0:00:08.8]} 62. Kb7
{[%clk 0:00:06.4]} 62... Kd6 {[%clk 0:00:09.4]} 63. Bf1 {[%clk 0:00:06.8]} 63...
Bd8 {[%clk 0:00:09.8]} 64. Be2 {[%clk 0:00:07.3]} 64... Ba5 {[%clk 0:00:09.6]}
65. Bf1 {[%clk 0:00:07.6]} 65... Bc7 {[%clk 0:00:10.5]} 66. Be2 {[%clk
0:00:08.2]} 66... Bd8 {[%clk 0:00:10.9]} 67. Bf1 {[%clk 0:00:08.8]} 67... Bc7
{[%clk 0:00:11.6]} 68. Be2 {[%clk 0:00:09.4]} 68... Bd8 {[%clk 0:00:12.3]} 69.
Bf1 {[%clk 0:00:10.1]} 69... Bc7 {[%clk 0:00:13.2]} 1/2-1/2

[Event "Late-Titled-Tuesday-Blitz-November-28-2023"]
[Site "Chess.com"]
[Date "2023.11.28"]
[Round "2"]
[White "carloseduar100"]
[Black "ATM622"]
[Result "0-1"]
[WhiteElo "2262"]
[BlackElo "2484"]
[TimeControl "180+1"]
[EndTime "14:18:00 PST"]
[Termination "ATM622 won by resignation"]

1. e4 {[%clk 0:02:48.5]} 1... c6 {[%clk 0:02:59.2]} 2. Nf3 {[%clk 0:02:35.3]}
2... d5 {[%clk 0:02:56]} 3. Nc3 {[%clk 0:02:36.2]} 3... dxe4 {[%clk 0:02:55.3]}
4. Nxe4 {[%clk 0:02:36]} 4... Bg4 {[%clk 0:02:53]} 5. Bc4 {[%clk 0:02:31.6]}
5... Nf6 {[%clk 0:02:50.9]} 6. Neg5 {[%clk 0:02:30.2]} 6... e6 {[%clk
0:02:45.4]} 7. Qe2 {[%clk 0:02:30.4]} 7... Nd5 {[%clk 0:02:38.4]} 8. h3 {[%clk
0:02:28.4]} 8... Bh5 {[%clk 0:02:33.9]} 9. d4 {[%clk 0:02:23.1]} 9... Be7 {[%clk
0:02:29.7]} 10. O-O {[%clk 0:02:15.3]} 10... b5 {[%clk 0:02:24]} 11. Bxd5 {[%clk
0:01:40.4]} 11... Qxd5 {[%clk 0:02:21.6]} 12. Qe5 {[%clk 0:01:14.1]} 12... f6
{[%clk 0:02:14.2]} 13. Qxd5 {[%clk 0:00:56.8]} 13... exd5 {[%clk 0:02:05.2]} 14.
Ne6 {[%clk 0:00:56.8]} 14... Kd7 {[%clk 0:02:01.8]} 15. Nf4 {[%clk 0:00:41.2]}
15... Bf7 {[%clk 0:01:58.6]} 16. Re1 {[%clk 0:00:40.2]} 16... Na6 {[%clk
0:01:52.2]} 17. c3 {[%clk 0:00:39.9]} 17... g5 {[%clk 0:01:49.3]} 18. Nd3 {[%clk
0:00:39.6]} 18... h5 {[%clk 0:01:49.4]} 19. a4 {[%clk 0:00:39.1]} 19... b4
{[%clk 0:01:47.1]} 20. cxb4 {[%clk 0:00:39]} 20... Bxb4 {[%clk 0:01:34.5]} 21.
Bd2 {[%clk 0:00:34.5]} 21... Bxd2 {[%clk 0:01:27.8]} 22. Nxd2 {[%clk 0:00:35.3]}
22... Rhe8 {[%clk 0:01:25.4]} 23. b4 {[%clk 0:00:35.2]} 23... Rab8 {[%clk
0:01:19.6]} 24. Rxe8 {[%clk 0:00:32.8]} 24... Bxe8 {[%clk 0:01:13.3]} 25. b5
{[%clk 0:00:33.1]} 25... Nc7 {[%clk 0:01:07]} 26. Nc5+ {[%clk 0:00:32.3]} 26...
Kd6 {[%clk 0:01:01.7]} 27. bxc6 {[%clk 0:00:28.2]} 27... Bxc6 {[%clk 0:00:57.9]}
28. Rc1 {[%clk 0:00:28.4]} 28... Rb2 {[%clk 0:00:55.3]} 29. Nf1 {[%clk
0:00:27.6]} 29... a5 {[%clk 0:00:50.2]} 30. Ne3 {[%clk 0:00:27.3]} 30... Bd7
{[%clk 0:00:46.4]} 31. Nd1 {[%clk 0:00:20.1]} 31... Rb4 {[%clk 0:00:41.3]} 32.
Nc3 {[%clk 0:00:20.3]} 32... Rxd4 {[%clk 0:00:34.9]} 33. Nxd7 {[%clk 0:00:20.6]}
33... Kxd7 {[%clk 0:00:34.2]} 34. Rb1 {[%clk 0:00:20.6]} 34... Rc4 {[%clk
0:00:33.8]} 35. Rb3 {[%clk 0:00:17.5]} 35... g4 {[%clk 0:00:31.6]} 36. hxg4
{[%clk 0:00:17.6]} 36... hxg4 {[%clk 0:00:31.9]} 37. Nb5 {[%clk 0:00:15.9]}
37... Rxa4 {[%clk 0:00:28.5]} 38. Nc3 {[%clk 0:00:14.9]} 38... Rc4 {[%clk
0:00:26.4]} 39. Na2 {[%clk 0:00:14.5]} 39... f5 {[%clk 0:00:26]} 40. g3 {[%clk
0:00:14.7]} 40... a4 {[%clk 0:00:24.6]} 41. Ra3 {[%clk 0:00:14.8]} 41... Nb5
{[%clk 0:00:24.2]} 42. Rd3 {[%clk 0:00:15.5]} 42... Kc6 {[%clk 0:00:22.4]} 43.
Kg2 {[%clk 0:00:15]} 43... d4 {[%clk 0:00:21.2]} 44. Rd2 {[%clk 0:00:12.3]}
44... Nc3 {[%clk 0:00:15.4]} 45. Nc1 {[%clk 0:00:11.8]} 45... Ne4 {[%clk
0:00:14.9]} 46. Rd1 {[%clk 0:00:11.6]} 46... Rc2 {[%clk 0:00:14.7]} 47. Nd3
{[%clk 0:00:12.1]} 47... Kb5 {[%clk 0:00:11.2]} 48. Rb1+ {[%clk 0:00:12]} 48...
Ka5 {[%clk 0:00:11.4]} 49. Ne1 {[%clk 0:00:10]} 49... Rxf2+ {[%clk 0:00:11.1]}
50. Kg1 {[%clk 0:00:10.7]} 50... Rd2 {[%clk 0:00:11.3]} 51. Ng2 {[%clk
0:00:08.2]} 51... Nxg3 {[%clk 0:00:11.2]} 52. Nf4 {[%clk 0:00:08.7]} 52... Ne2+
{[%clk 0:00:11.5]} 53. Nxe2 {[%clk 0:00:08.3]} 53... Rxe2 {[%clk 0:00:12.4]} 54.
Kf1 {[%clk 0:00:08.8]} 54... d3 {[%clk 0:00:12.3]} 55. Rc1 {[%clk 0:00:06.9]}
55... a3 {[%clk 0:00:10.5]} 56. Ra1 {[%clk 0:00:07.2]} 56... Kb4 {[%clk
0:00:10.5]} 57. Kg1 {[%clk 0:00:07.9]} 57... a2 {[%clk 0:00:10.4]} 58. Kf1
{[%clk 0:00:07.8]} 58... Rb2 {[%clk 0:00:10.3]} 0-1